fUST/lending_fUST_20240702
["ID","MTS","AMOUNT","RATE_DAILY","PERIOD"]
[330882514,1719893446172,-954.0,0.00015777,2]
[330882515,1719893446181,-502.13896895,0.00015777,2]
[330882516,1719893446190,-544.33082368,0.00015777,2]
[330882517,1719893446200,-305.1050613,0.00015777,2]
[330882518,1719893446209,-712.05,0.00015777,2]
[330882519,1719893446219,-981.79,0.00015777,2]
[330882520,1719893446228,-500.0,0.00015777,2]
[330882521,1719893446237,-500.0,0.00015777,2]
[330882522,1719893446248,-500.0,0.00015777,2]
[330882523,1719893446257,-500.0,0.00015777,2]
[330882524,1719893446266,-669.84,0.00015777,2]
[330882525,1719893446275,-563.92,0.00015777,2]
[330882526,1719893446284,-500.0,0.00015777,2]
[330882527,1719893446293,-500.0,0.00015777,2]
[330882528,1719893446303,-500.0,0.00015777,2]
[330882529,1719893446313,-500.0,0.00015777,2]
[330882530,1719893446323,-500.0,0.00015777,2]
[330882531,1719893446332,-500.0,0.00015777,2]
[330882532,1719893446342,-500.0,0.00015777,2]
[330882533,1719893446351,-618.28408321,0.00015777,2]
[330882534,1719893446360,-500.0,0.00015777,2]
[330882535,1719893446370,-500.0,0.00015777,2]
[330882536,1719893446381,-500.0,0.00015777,2]
[330882537,1719893446391,-618.78,0.00015777,2]
[330882538,1719893446401,-633.45,0.00015777,2]
[330882539,1719893446410,-500.0,0.00015777,2]
[330882540,1719893446419,-500.0,0.00015777,2]
[330882541,1719893446428,-500.0,0.00015777,2]
[330882542,1719893446439,-500.0,0.00015777,2]
[330882543,1719893446447,-505.36739278,0.00015777,2]
[330882544,1719893446459,-500.0,0.00015777,2]
[330882545,1719893446468,-500.0,0.00015777,2]
[330882546,1719893446478,-500.0,0.00015777,2]
[330882547,1719893446487,-500.0,0.00015777,2]
[330882548,1719893446498,-500.0,0.00015777,2]
[330882549,1719893446507,-220.90099999,0.00015777,2]
[330882550,1719893446517,-640.2,0.00015777,2]
[330882551,1719893446527,-3055.64924435,0.00015777,2]
[330882552,1719893446539,-300.0,0.00015777,2]
[330882553,1719893580900,533.28102006,0.00014999,2]
[330882555,1719893855635,3718.9363592,0.00014779,2]
[330882561,1719894488047,1047.11107994,0.00014999,2]
[330882562,1719894504775,3771.31175907,0.00014779,2]
[330882566,1719894590779,3778.78754463,0.00014779,2]
[330882567,1719894594792,2019.4232334,0.00014999,2]
[330882598,1719894631955,-500.0,0.00015773,2]
[330882599,1719894631965,-710.88993145,0.00015773,2]
[330882684,1719894640630,-168.67006855,0.00015773,2]
[330882685,1719894640640,-174.13492957,0.00015773,2]
[330882701,1719894643076,-2338.44507043,0.00015773,2]
[330882702,1719894643085,-500.0,0.00015773,2]
[330882703,1719894643094,-14438.29,0.00015773,2]
[330882704,1719894643103,-1489.78,0.00015773,2]
[330882705,1719894643113,-571.87767061,0.00015773,2]
[330882706,1719894643158,-309.11231245,0.00015773,2]
[330882707,1719894643171,-1798.29001694,0.00015773,2]
[330882708,1719894643181,-4587.07,0.00015773,2]
[330882709,1719894643192,-719.5,0.00015773,2]
[330882710,1719894643202,-500.0,0.00015773,2]
[330882711,1719894643211,-562.87291938,0.00015774,2]
[330882721,1719894646108,-557.2,0.00015773,2]
[330882722,1719894646118,-914.25,0.00015774,2]
[330882723,1719894646126,-682.38,0.00015774,2]
[330882724,1719894646135,-500.0,0.00015774,2]
[330882725,1719894646144,-500.0,0.00015774,2]
[330882726,1719894646156,-940.88,0.00015774,2]
[330882727,1719894646165,-641.93,0.00015774,2]
[330882728,1719894646174,-540.42,0.00015774,2]
[330882729,1719894646183,-500.0,0.00015774,2]
[330882730,1719894646192,-357.09586121,0.00015774,2]
[330882731,1719894646205,-142.90413879,0.00015774,2]
[330882732,1719894646214,-500.0,0.00015774,2]
[330882733,1719894646223,-500.0,0.00015774,2]
[330882735,1719894646233,-167.5975083,0.00015774,2]
[330882736,1719894646242,-593.0,0.00015774,2]
[330882737,1719894646251,-504.96978247,0.00015774,2]
[330882738,1719894646260,-500.0,0.00015774,2]
[330882739,1719894646270,-500.0,0.00015774,2]
[330882740,1719894646279,-500.0,0.00015774,2]
[330882741,1719894646287,-503.79930799,0.00015774,2]
[330882742,1719894646296,-502.54265345,0.00015774,2]
[330882743,1719894646306,-532.41,0.00015774,2]
[330882744,1719894646315,-500.0,0.00015774,2]
[330882745,1719894646324,-1411.8,0.00015774,2]
[330882746,1719894646334,-613.53,0.00015774,2]
[330882747,1719894646343,-500.0,0.00015774,2]
[330882748,1719894646352,-1736.97,0.00015774,2]
[330882749,1719894646361,-500.0,0.00015774,2]
[330882750,1719894646371,-231.56274693,0.00015774,2]
[330882751,1719894646380,-341.97466586,0.00015774,2]
[330882752,1719894694781,3770.31413179,0.00014999,2]
[330882753,1719894825786,3771.31175907,0.00014999,2]
[330882755,1719894941792,2117.25876978,0.00014999,2]
[330882756,1719895053333,3551.8015074,0.00014775,2]
[330882762,1719895248816,3770.31413179,0.00014775,2]
[330882765,1719895389442,162.90143711,0.00014775,2]
[330882766,1719895404508,311.34368042,0.00014999,2]
[330882767,1719895407838,3770.31413179,0.00014775,2]
[330882768,1719895416246,160.0,0.00014999,2]
[330882774,1719895532836,3463.13608616,0.00014999,2]
[330882835,1719895832144,-892.41994913,0.00015614,2]
[330882839,1719895832172,-412.60757393,0.00015614,2]
[330882841,1719895832183,-774.65,0.00015614,2]
[330882844,1719895832202,-1285.47955874,0.00015614,2]
[330882846,1719895832213,-1914.70104935,0.00015614,2]
[330882848,1719895832222,-500.0,0.00015771,2]
[330882850,1719895832231,-500.0,0.00015771,2]
[330882852,1719895832241,-108.75575109,0.00015771,2]
[330883003,1719895838190,-683.3362703,0.00015771,2]
[330883005,1719895838202,-50.81797861,0.00015771,2]
[330883007,1719895838212,-858.14008655,0.00015771,2]
[330883009,1719895838223,-1482.1239843,0.00015771,2]
[330883156,1719897032552,-300.0,0.00015767,2]
[330883158,1719897032563,-86.01217285,0.00015768,2]
[330883260,1719897038448,-721.77782715,0.00015768,2]
[330883261,1719897038458,-278.47362286,0.00015768,2]
[330883262,1719897038470,-2246.60637714,0.00015768,2]
[330883263,1719897038480,-500.0,0.00015768,2]
[330883264,1719897038490,-1801.01145535,0.00015768,2]
[330883319,1719897043810,-570.499992,0.00015768,2]
[330883320,1719897043824,-280.000005,0.00015768,2]
[330883348,1719897046604,-1023.67334161,0.00015768,2]
[330883350,1719897046616,-514.55065191,0.00015768,2]
[330883352,1719897046627,-1229.33739131,0.00015768,2]
[330883355,1719897046652,-301.45425223,0.00015768,2]
[330883357,1719897046664,-8116.16291059,0.00015768,2]
[330883358,1719897046673,-1427.71,0.00015768,2]
[330883360,1719897046682,-2427.67931568,0.00015768,2]
[330883361,1719897115146,250.0,0.00014771,2]
[330883366,1719897343177,948.66466546,0.00015,2]
[330883367,1719897363823,155.99355286,0.00014999,2]
[330883369,1719897496178,950.95306076,0.00015,2]
[330883371,1719897563752,2516.5154663,0.0001476,2]
[330883372,1719897570496,869.79610735,0.00014999,2]
[330883406,1719898233799,-159.4629778,0.00015616,2]
[330883408,1719898233808,-202.6799852,0.00015649,2]
[330883410,1719898233818,-3047.91206139,0.00015698,2]
[330883413,1719898233831,-16956.29997275,0.00015698,2]
[330883415,1719898233841,-5000.0,0.000157,2]
[330883417,1719898233850,-5000.0,0.000157,2]
[330883419,1719898233859,-500.0,0.00015749,2]
[330883420,1719898233869,-2419.87,0.00015749,2]
[330883422,1719898233879,-531.28984107,0.00015749,2]
[330883424,1719898233889,-14381.94,0.00015749,2]
[330883426,1719898233898,-1368.22,0.00015749,2]
[330883428,1719898233909,-2466.49,0.00015749,2]
[330883430,1719898233918,-500.0,0.00015749,2]
[330883432,1719898233928,-1352.97,0.00015749,2]
[330883433,1719898233938,-500.0,0.0001575,2]
[330883434,1719898233947,-1664.59,0.0001575,2]
[330883436,1719898233957,-1097.49,0.0001575,2]
[330883438,1719898233971,-408.82,0.0001575,2]
[330883439,1719898233981,-1151.76,0.0001575,2]
[330883440,1719898233991,-500.0,0.0001575,2]
[330883441,1719898234000,-5273.68,0.0001575,2]
[330883442,1719898234009,-4395.94,0.0001575,2]
[330883443,1719898234019,-500.0,0.0001575,2]
[330883444,1719898234030,-500.0,0.0001575,2]
[330883445,1719898234039,-500.0,0.0001575,2]
[330883446,1719898234051,-500.0,0.0001575,2]
[330883447,1719898234060,-500.0,0.0001575,2]
[330883448,1719898234069,-931.78,0.0001575,2]
[330883449,1719898234293,-1445.44,0.0001575,2]
[330883450,1719898234304,-6896.75,0.0001575,2]
[330883451,1719898234316,-4211.55,0.0001575,2]
[330883452,1719898234326,-500.0,0.0001575,2]
[330883453,1719898234337,-1140.71,0.0001575,2]
[330883454,1719898234347,-533.98,0.00015751,2]
[330883455,1719898234358,-876.15,0.00015751,2]
[330883456,1719898234368,-653.95,0.00015751,2]
[330883457,1719898234378,-901.68,0.00015751,2]
[330883458,1719898234388,-500.0,0.00015751,2]
[330883459,1719898234399,-500.0,0.00015751,2]
[330883460,1719898234411,-615.18,0.00015751,2]
[330883461,1719898234421,-517.9,0.00015751,2]
[330883462,1719898234431,-500.0,0.00015751,2]
[330883463,1719898234441,-500.0,0.00015751,2]
[330883464,1719898234452,-500.0,0.00015751,2]
[330883465,1719898234462,-500.0,0.00015751,2]
[330883466,1719898234472,-568.29,0.00015751,2]
[330883467,1719898234482,-500.0,0.00015751,2]
[330883468,1719898234492,-500.0,0.00015751,2]
[330883469,1719898234502,-500.0,0.00015751,2]
[330883470,1719898234511,-510.22,0.00015751,2]
[330883471,1719898234520,-500.0,0.00015751,2]
[330883472,1719898234530,-696.11,0.00015751,2]
[330883473,1719898234540,-500.0,0.00015751,2]
[330883474,1719898234549,-507.47587675,0.00015751,2]
[330883475,1719898234563,-509.0620375,0.00015751,2]
[330883476,1719898234573,-500.0,0.00015751,2]
[330883477,1719898234583,-787.27,0.00015751,2]
[330883478,1719898234593,-535.51339096,0.00015751,2]
[330883479,1719898234603,-500.0,0.00015751,2]
[330883480,1719898234613,-500.0,0.00015751,2]
[330883481,1719898234622,-500.0,0.00015751,2]
[330883482,1719898234632,-500.0,0.00015751,2]
[330883483,1719898234641,-500.0,0.00015751,2]
[330883484,1719898234651,-500.0,0.00015751,2]
[330883485,1719898234662,-500.0,0.00015751,2]
[330883486,1719898234671,-500.0,0.00015751,2]
[330883487,1719898234681,-585.05,0.00015751,2]
[330883488,1719898234691,-5578.78,0.00015751,2]
[330883489,1719898234700,-500.0,0.00015752,2]
[330883490,1719898234709,-1096.63,0.00015752,2]
[330883491,1719898234719,-20007.57222238,0.00015753,2]
[330883492,1719898234729,-151.0,0.00015753,2]
[330883493,1719898234739,-286.750402,0.00015753,2]
[330883494,1719898234749,-500.0,0.00015767,2]
[330883495,1719898234759,-404.46162398,0.00015767,2]
[330883496,1719898234768,-500.0,0.00015767,2]
[330883497,1719898234778,-262.53508543,0.00015767,2]
[330883498,1719898234787,-500.0,0.00015767,2]
[330883499,1719898234796,-500.0,0.00015767,2]
[330883500,1719898234805,-500.0,0.00015767,2]
[330883501,1719898234815,-607.06,0.00015767,2]
[330883502,1719898234824,-500.0,0.00015767,2]
[330883503,1719898234832,-74.51141916,0.00015767,2]
[330883504,1719898234845,-425.48858084,0.00015767,2]
[330883505,1719898234854,-500.0,0.00015767,2]
[330883506,1719898234863,-567.01503073,0.00015767,2]
[330883507,1719898234873,-25.9781178,0.00015767,2]
[330883541,1719898239340,-474.0218822,0.00015767,2]
[330883542,1719898239350,-500.0,0.00015767,2]
[330883543,1719898239360,-503.79569437,0.00015767,2]
[330883544,1719898239369,-502.53866109,0.00015767,2]
[330883545,1719898239379,-500.0,0.00015767,2]
[330883546,1719898239389,-503.16572346,0.00015767,2]
[330883547,1719898239399,-505.32110935,0.00015767,2]
[330883548,1719898239408,-503.16624386,0.00015767,2]
[330883549,1719898239418,-503.59347926,0.00015767,2]
[330883550,1719898239429,-504.30890535,0.00015767,2]
[330883551,1719898239439,-500.0,0.00015767,2]
[330883552,1719898239449,-504.38404798,0.00015767,2]
[330883553,1719898239459,-500.0,0.00015767,2]
[330883554,1719898239470,-500.0,0.00015767,2]
[330883555,1719898239481,-500.0,0.00015767,2]
[330883556,1719898239491,-503.05682226,0.00015767,2]
[330883557,1719898239501,-500.0,0.00015767,2]
[330883558,1719898239511,-500.0,0.00015767,2]
[330883559,1719898239521,-508.93,0.00015767,2]
[330883560,1719898239532,-500.0,0.00015767,2]
[330883561,1719898239542,-500.0,0.00015767,2]
[330883562,1719898239552,-503.60821617,0.00015767,2]
[330883563,1719898239565,-500.0,0.00015767,2]
[330883564,1719898239575,-500.0,0.00015767,2]
[330883565,1719898239585,-154.82195475,0.00015767,2]
[330883566,1719898239595,-505.97604869,0.00015767,2]
[330883567,1719898239607,-500.0,0.00015767,2]
[330883568,1719898239618,-502.20466651,0.00015767,2]
[330883569,1719898239628,-500.0,0.00015767,2]
[330883570,1719898239638,-500.0,0.00015767,2]
[330883571,1719898239651,-500.0,0.00015768,2]
[330883572,1719898239662,-852.47,0.00015768,2]
[330883573,1719898239672,-151.0,0.00015768,2]
[330883574,1719898239682,-151.0,0.00015768,2]
[330883575,1719898239692,-151.0,0.00015768,2]
[330883576,1719898239703,-151.0,0.00015768,2]
[330883577,1719898239713,-151.0,0.00015768,2]
[330883578,1719898239723,-151.0,0.00015768,2]
[330883579,1719898239732,-151.0,0.00015768,2]
[330883580,1719898239742,-151.0,0.00015768,2]
[330883581,1719898239752,-151.0,0.00015768,2]
[330883582,1719898239762,-503.59168441,0.00015768,2]
[330883583,1719898239771,-222.91704429,0.00015768,2]
[330883584,1719898239781,-500.0,0.00015768,2]
[330883585,1719898239790,-610.86,0.00015768,2]
[330883586,1719898239800,-500.0,0.00015768,2]
[330883587,1719898239809,-500.0,0.00015768,2]
[330883588,1719898239819,-713.44,0.00015768,2]
[330883589,1719898239829,-188.62839726,0.00015768,2]
[330883590,1719898239839,-299.5704052,0.00015768,2]
[330883602,1719898241128,-366.07535961,0.00015751,2]
[330883603,1719898241140,-133.92464039,0.00015751,2]
[330883604,1719898241149,-209.2095948,0.00015768,2]
[330883605,1719898241159,-500.0,0.00015768,2]
[330883606,1719898241168,-504.38991701,0.00015768,2]
[330883607,1719898241178,-485.93544705,0.00015768,2]
[330883608,1719898241188,-776.78,0.00015768,2]
[330883609,1719898241197,-500.0,0.00015768,2]
[330883610,1719898241207,-837.66,0.00015768,2]
[330883611,1719898241216,-402.35805372,0.00015768,2]
[330883612,1719898241225,-500.0,0.00015768,2]
[330883613,1719898241235,-373.00747986,0.00015768,2]
[330883614,1719898241244,-500.0,0.00015768,2]
[330883615,1719898241254,-500.0,0.00015768,2]
[330883616,1719898241264,-394.077144,0.00015768,2]
[330883617,1719898241273,-116.67029241,0.00015768,2]
[330883637,1719898412247,618.2814932,0.00014723,2]
[330883640,1719898486974,155.21883743,0.00014999,2]
[330883641,1719898489459,498.40134809,0.00015,2]
[330883642,1719898490814,170.04394357,0.00014999,2]
[330883643,1719898490989,154.86836189,0.00014999,2]
[330883645,1719898663506,154.92514167,0.00014999,2]
[330883646,1719898680000,202.30087374,0.00014999,2]
[330883647,1719898716503,3769.18827951,0.00014999,2]
[330883648,1719898744470,24900.0,0.00014716,2]
[330883780,1719898971615,153.21,0.00024,60]
[330883845,1719899304528,20984.8290627,0.00014726,2]
[330883920,1719899431971,-309.28791182,0.00015532,2]
[330883922,1719899431980,-884.4334764,0.00015641,2]
[330883924,1719899431992,-259.33462575,0.00015641,2]
[330883926,1719899432002,-177.34498705,0.00015648,2]
[330883927,1719899432011,-300.0,0.0001566,2]
[330883929,1719899432021,-195.0,0.00015747,2]
[330883930,1719899432031,-300.0,0.00015747,2]
[330883931,1719899432040,-500.0,0.00015747,2]
[330883932,1719899432050,-504.49121328,0.00015747,2]
[330883934,1719899432059,-500.0,0.00015747,2]
[330883936,1719899432069,-1136.90668036,0.00015748,2]
[330883937,1719899432078,-504.19345201,0.00015748,2]
[330883939,1719899432086,-502.45867157,0.00015748,2]
[330883941,1719899432095,-502.09704005,0.00015748,2]
[330883943,1719899432105,-506.16585325,0.00015748,2]
[330883945,1719899432114,-1050.93,0.00015748,2]
[330883947,1719899432123,-1296.6,0.00015748,2]
[330883949,1719899432133,-1595.24,0.00015748,2]
[330883951,1719899432142,-1051.76,0.00015748,2]
[330883953,1719899432151,-500.0,0.00015748,2]
[330883955,1719899432160,-1103.77,0.00015748,2]
[330883957,1719899432170,-500.0,0.00015748,2]
[330883959,1719899432180,-5053.94,0.00015748,2]
[330883961,1719899432190,-500.0,0.00015748,2]
[330883963,1719899432199,-753.3,0.00015748,2]
[330883965,1719899432207,-1937.41019959,0.00015748,2]
[330884112,1719899438052,-381.62980041,0.00015748,2]
[330884114,1719899438062,-500.0,0.00015748,2]
[330884115,1719899438072,-500.0,0.00015748,2]
[330884118,1719899438081,-15117.97,0.00015748,2]
[330884120,1719899438091,-359.91685426,0.00015748,2]
[330884122,1719899438103,-140.08314574,0.00015748,2]
[330884124,1719899438113,-500.0,0.00015748,2]
[330884126,1719899438122,-1537.77,0.00015748,2]
[330884128,1719899438131,-282.46368157,0.00015748,2]
[330884130,1719899438142,-217.53631843,0.00015748,2]
[330884132,1719899438152,-270.79874713,0.00015748,2]
[330884134,1719899438160,-308.83771202,0.00015748,2]
[330884338,1719899440439,-584.12228798,0.00015748,2]
[330884340,1719899440451,-2758.79,0.00015748,2]
[330884342,1719899440461,-1385.21,0.00015748,2]
[330884344,1719899440471,-4552.91885277,0.00015748,2]
[330884375,1719899440793,-264.0,0.00015748,2]
[330884412,1719899446019,-1792.46114723,0.00015748,2]
[330884413,1719899446028,-668.69,0.00015748,2]
[330884414,1719899446040,-615.69,0.00015748,2]
[330884415,1719899446050,-500.0,0.00015748,2]
[330884416,1719899446059,-500.0,0.00015748,2]
[330884417,1719899446069,-500.0,0.00015748,2]
[330884418,1719899446078,-500.0,0.00015749,2]
[330884419,1719899446087,-581.76,0.00015749,2]
[330884420,1719899446097,-500.0,0.00015749,2]
[330884421,1719899446106,-500.0,0.00015749,2]
[330884422,1719899446115,-101.00665204,0.00015749,2]
[330884423,1719899446134,-398.99334796,0.00015749,2]
[330884424,1719899446143,-500.0,0.00015749,2]
[330884425,1719899446152,-157.27842767,0.00015749,2]
[330884426,1719899446161,-218.62280517,0.00015749,2]
[330884427,1719899446170,-500.0,0.00015749,2]
[330884428,1719899446179,-500.0,0.00015749,2]
[330884429,1719899446188,-500.0,0.00015749,2]
[330884430,1719899446197,-500.0,0.00015749,2]
[330884431,1719899446208,-500.0,0.00015749,2]
[330884432,1719899446217,-816.95,0.00015749,2]
[330884433,1719899446226,-503.76471199,0.00015749,2]
[330884434,1719899446236,-501.14042304,0.00015749,2]
[330884435,1719899446245,-500.0,0.00015749,2]
[330884436,1719899446254,-500.0,0.00015749,2]
[330884437,1719899446263,-506.14341322,0.00015749,2]
[330884438,1719899446272,-511.73,0.00015749,2]
[330884439,1719899446281,-506.02086059,0.00015749,2]
[330884440,1719899446291,-568.38722603,0.00015749,2]
[330884441,1719899446300,-561.36,0.00015749,2]
[330884442,1719899446309,-503.74881603,0.00015749,2]
[330884443,1719899446319,-503.7523198,0.00015749,2]
[330884444,1719899446328,-839.65,0.00015749,2]
[330884445,1719899446337,-502.87740889,0.00015749,2]
[330884446,1719899446346,-500.0,0.00015749,2]
[330884447,1719899446355,-500.0,0.00015749,2]
[330884448,1719899446364,-502.40125518,0.00015749,2]
[330884449,1719899446373,-502.26971491,0.00015749,2]
[330884450,1719899446383,-585.41,0.00015749,2]
[330884451,1719899446391,-502.45728506,0.00015749,2]
[330884452,1719899446401,-500.0,0.00015749,2]
[330884453,1719899446410,-374.53866042,0.00015749,2]
[330884454,1719899446420,-626.7,0.00015749,2]
[330884455,1719899446429,-500.0,0.00015749,2]
[330884456,1719899446438,-328.16772296,0.00015749,2]
[330884457,1719899446447,-683.72,0.00015749,2]
[330884458,1719899446457,-864.11,0.00015749,2]
[330884459,1719899446467,-500.0,0.00015749,2]
[330884460,1719899446476,-500.0,0.00015749,2]
[330884461,1719899446485,-505.40430516,0.00015749,2]
[330884462,1719899446494,-589.55,0.00015749,2]
[330884463,1719899446503,-503.91080026,0.00015749,2]
[330884464,1719899446512,-500.0,0.00015749,2]
[330884465,1719899446521,-500.0,0.00015749,2]
[330884466,1719899446531,-176.95698535,0.00015749,2]
[330884467,1719899446539,-482.77416286,0.00015749,2]
[330884468,1719899446548,-744.41,0.00015749,2]
[330884469,1719899446557,-500.0,0.00015749,2]
[330884470,1719899446566,-500.0,0.00015749,2]
[330884471,1719899446575,-500.0,0.00015749,2]
[330884472,1719899446585,-507.38,0.00015749,2]
[330884473,1719899446594,-500.0,0.00015749,2]
[330884474,1719899446603,-500.0,0.00015749,2]
[330884475,1719899446611,-908.38,0.00015749,2]
[330884476,1719899446620,-215.35728875,0.00015749,2]
[330884477,1719899446629,-212.5757325,0.00015749,2]
[330884478,1719899446638,-500.0,0.00015749,2]
[330884479,1719899446647,-648.37,0.00015749,2]
[330884480,1719899446656,-500.0,0.00015749,2]
[330884481,1719899446666,-500.0,0.00015749,2]
[330884482,1719899446676,-278.10396211,0.00015749,2]
[330884483,1719899446685,-544.61,0.00015749,2]
[330884484,1719899446694,-500.0,0.00015749,2]
[330884485,1719899446704,-1005.28,0.00015749,2]
[330884486,1719899446713,-500.0,0.00015749,2]
[330884487,1719899446723,-503.60499942,0.00015749,2]
[330884488,1719899446732,-500.0,0.00015749,2]
[330884489,1719899446742,-500.0,0.00015749,2]
[330884490,1719899446751,-500.0,0.00015749,2]
[330884491,1719899446760,-500.0,0.00015749,2]
[330884492,1719899446770,-500.0,0.00015749,2]
[330884493,1719899446779,-500.0,0.00015749,2]
[330884494,1719899446788,-535.46,0.00015749,2]
[330884495,1719899446797,-770.74,0.00015749,2]
[330884496,1719899446807,-500.0,0.00015749,2]
[330884497,1719899446816,-500.0,0.00015749,2]
[330884498,1719899446826,-4212.77,0.00015749,2]
[330884499,1719899446835,-505.12057704,0.00015749,2]
[330884500,1719899446844,-500.0,0.00015749,2]
[330884501,1719899446853,-500.0,0.00015749,2]
[330884502,1719899446862,-754.46,0.00015749,2]
[330884503,1719899446872,-500.0,0.00015749,2]
[330884504,1719899446881,-636.79901793,0.00015749,2]
[330884505,1719899446890,-500.0,0.00015749,2]
[330884506,1719899446899,-500.0,0.00015749,2]
[330884507,1719899446908,-500.0,0.00015749,2]
[330884508,1719899446917,-500.0,0.00015749,2]
[330884509,1719899446926,-1093.18,0.00015749,2]
[330884510,1719899446935,-500.0,0.00015749,2]
[330884511,1719899446950,-884.46,0.00015749,2]
[330884512,1719899446959,-884.46,0.00015749,2]
[330884513,1719899446969,-500.0,0.00015749,2]
[330884514,1719899446978,-560.67,0.00015749,2]
[330884515,1719899446989,-151.0,0.00015749,2]
[330884516,1719899446999,-505.68399511,0.0001575,2]
[330884517,1719899447008,-5346.33,0.0001575,2]
[330884518,1719899447020,-500.0,0.0001575,2]
[330884519,1719899447029,-11277.25,0.0001575,2]
[330884520,1719899447039,-541.31,0.0001575,2]
[330884521,1719899447048,-500.0,0.0001575,2]
[330884522,1719899447057,-504.35283484,0.0001575,2]
[330884523,1719899447067,-500.0,0.00015751,2]
[330884524,1719899447077,-500.0,0.00015751,2]
[330884525,1719899447087,-1594.91,0.00015751,2]
[330884526,1719899447097,-4518.26,0.00015751,2]
[330884527,1719899447106,-1171.12,0.00015751,2]
[330884528,1719899447115,-781.0,0.00015752,2]
[330884529,1719899447125,-884.46,0.00015767,2]
[330884530,1719899447134,-753.14,0.00015768,2]
[330884531,1719899447143,-561.84,0.00015768,2]
[330884532,1719899447153,-8368.08,0.00015769,2]
[330884533,1719899447162,-3875.95,0.00015769,2]
[330884534,1719899447172,-152.272,0.00015783,2]
[330884535,1719899447182,-877.0,0.00015783,2]
[330884536,1719899447191,-893.0,0.000158,2]
[330884537,1719899447200,-4457.55076717,0.00015842,2]
[330884538,1719899447210,-12210.96335028,0.00015924,2]
[330884539,1719899447219,-41147.95244068,0.00015924,2]
[330884647,1719899631128,6980.69445478,0.00014998,2]
[330884648,1719899690604,269.54035661,0.00014999,2]
[330884651,1719899702670,586.60022299,0.00014999,2]
[330884652,1719899706398,154.86836189,0.00014999,2]
[330884653,1719899709588,2129.2320514,0.00014999,2]
[330884654,1719899712299,189.29518759,0.00014999,2]
[330884655,1719899712896,236.6113708,0.00014999,2]
[330884656,1719899714702,309.61298378,0.00014999,2]
[330884657,1719899717594,3769.18827951,0.00014998,2]
[330884658,1719899726052,842.64804764,0.00014999,2]
[330884662,1719899809753,2108.04930814,0.00014999,2]
[330884663,1719899868401,154.93869025,0.00014999,2]
[330884664,1719899869167,13000.0,0.00025,120]
[330884665,1719899872144,1136.98179793,0.00014999,2]
[330884666,1719899888193,1023.22264663,0.00015,2]
[330884668,1719900033228,186.47058796,0.00015,2]
[330884674,1719900430075,1244.1044637,0.00014739,2]
[330884676,1719900591996,19476.4545575,0.00014747,2]
[330884780,1719900640480,-173.54679714,0.00015618,2]
[330884782,1719900640490,-173.54679714,0.00015645,2]
[330884784,1719900640500,-155.17686366,0.00015647,2]
[330884786,1719900640510,-789.38418939,0.00015718,2]
[330884788,1719900640521,-87.61581061,0.00015718,2]
[330884790,1719900640531,-295.0,0.00015745,2]
[330884791,1719900640540,-640.83,0.00015746,2]
[330884793,1719900640549,-1242.57,0.00015746,2]
[330884795,1719900640558,-1528.77,0.00015746,2]
[330884797,1719900640568,-1007.94,0.00015746,2]
[330884799,1719900640577,-1057.78,0.00015746,2]
[330884801,1719900640586,-2825.29,0.00015746,2]
[330884802,1719900640596,-500.0,0.00015746,2]